bitfinex/quotes_SOLUSD_20220207
["timestamp","ask_amount","ask_price","bid_price","bid_amount"]
[1644272733588,16.81988587,118.32,118.3,6.06439994]
[1644272733890,16.81988587,118.32,118.31,6.12741583]
[1644272736795,16.81988587,118.32,118.29,0.93952508]
[1644272736994,16.81988587,118.32,118.3,6.12741583]
[1644272738109,8.587e-05,118.32,118.3,6.12741583]
[1644272738312,6.0,118.32,118.31,6.06439994]
[1644272738511,4.226,118.36,118.31,6.06439994]
[1644272738710,3.705088,118.35,118.31,6.06439994]
[1644272738913,16.384488,118.35,118.31,6.06439994]
[1644272739311,12.6794,118.35,118.3,11.22169598]
[1644272739513,4.225,118.34,118.3,11.22169598]
[1644272739913,4.225,118.37,118.3,11.22169598]
[1644272740112,73.115325,118.37,118.31,23.0788]
[1644272740314,67.115325,118.37,118.31,23.0788]
[1644272740515,70.142936,118.36,118.32,6.12741583]
[1644272740814,4.225,118.35,118.32,6.12741583]
[1644272741216,10.225,118.35,118.32,6.12741583]
[1644272741418,12.6799,118.34,118.32,6.12741583]
[1644272741618,18.6799,118.34,118.32,6.12741583]
[1644272743717,15.7059192,118.34,118.33,3.03219997]
[1644272744120,15.9559192,118.34,118.33,3.03219997]
[1644272744320,15.9559192,118.34,118.33,9.1596158]
[1644272745829,15.9559192,118.34,118.33,6.12741583]
[1644272748536,15.9559192,118.34,118.33,9.1596158]
[1644272752243,15.9559192,118.34,118.33,6.12741583]
[1644272752842,15.9559192,118.34,118.33,9.1596158]
[1644272754145,9.7059192,118.34,118.33,9.1596158]
[1644272754343,12.6775,118.35,118.33,9.1596158]
[1644272754644,12.6775,118.35,118.34,3.03219997]
[1644272755044,12.6775,118.35,118.34,9.1596158]
[1644272756269,12.6765,118.36,118.34,9.1596158]
[1644272756448,12.6765,118.36,118.34,6.12741583]
[1644272757448,12.6765,118.36,118.35,3.03219997]
[1644272757644,12.6765,118.36,118.34,6.12741583]
[1644272758045,12.6765,118.36,118.32,6.12741583]
[1644272758245,12.1765,118.36,118.32,6.12741583]
[1644272759146,1.20623835,118.38,118.33,5.19100021]
[1644272759346,0.21284486,118.39,118.33,5.44100021]
[1644272760053,0.21284486,118.39,118.34,22.9863]
[1644272760446,0.21284486,118.39,118.34,35.6587]
[1644272760949,0.21284486,118.39,118.35,6.12741583]
[1644272762150,0.21284486,118.39,118.35,10.35141583]
[1644272763348,0.21284486,118.39,118.35,6.12741583]
[1644272764582,0.21284486,118.39,118.35,18.79921583]
[1644272766779,0.21284486,118.39,118.35,6.12741583]
[1644272773091,0.21284486,118.39,118.35,13.58356665]
[1644272774691,12.88684486,118.39,118.35,13.58356665]
[1644272779899,0.21284486,118.39,118.35,13.58356665]
[1644272780598,0.21284486,118.39,118.35,6.12741583]
[1644272781999,12.88704486,118.39,118.35,6.12741583]
[1644272782198,18.88704486,118.39,118.35,6.12741583]
[1644272782398,17.94751978,118.39,118.34,6.12741583]
[1644272782600,4.224,118.38,118.34,6.12741583]
[1644272784108,12.677,118.37,118.34,6.12741583]
[1644272785305,12.677,118.37,118.35,6.06439994]
[1644272785603,12.677,118.37,118.33,6.12741583]
[1644272786005,12.677,118.37,118.33,10.8434077]
[1644272786505,12.677,118.37,118.33,6.12741583]
[1644272787505,12.677,118.37,118.33,29.37518888]
[1644272787704,12.6749,118.38,118.33,29.37518888]
[1644272789209,12.6749,118.38,118.33,29.62518888]
[1644272792508,12.6749,118.38,118.34,4.224]
[1644272792710,12.6749,118.38,118.34,4.474]
[1644272792909,12.6749,118.38,118.35,6.12741583]
[1644272793309,12.6749,118.38,118.36,3.03219997]
[1644272793513,12.6749,118.38,118.35,6.12741583]
[1644272794113,12.6749,118.38,118.35,10.73554314]
[1644272794614,12.6749,118.38,118.35,6.12741583]
[1644272794914,12.6749,118.38,118.36,6.06439994]
[1644272796215,12.6749,118.38,118.37,6.12741583]
[1644272798920,12.6749,118.38,118.37,12.19181577]
[1644272799118,12.6749,118.38,118.37,6.12741583]
[1644272799418,12.6749,118.38,118.35,6.12741583]
[1644272800220,12.6749,118.38,118.36,6.06439994]
[1644272803119,12.6749,118.38,118.37,6.12741583]
[1644272807427,1.41830745,118.41,118.37,6.12741583]
[1644272808029,1.41830745,118.41,118.35,6.12741583]
[1644272808227,0.4620691,118.41,118.36,23.4921]
[1644272808629,0.2120691,118.41,118.36,23.4921]
[1644272809027,12.8838691,118.41,118.36,23.4921]
[1644272811131,12.8838691,118.41,118.37,6.12741583]
[1644272815055,13.1338691,118.41,118.37,6.12741583]
[1644272816856,12.8838691,118.41,118.37,27.11266073]
[1644272817257,12.8838691,118.41,118.37,6.12741583]
[1644272818759,13.1338691,118.41,118.37,6.12741583]
[1644272819259,17.3568691,118.41,118.37,6.12741583]
[1644272819659,0.2120691,118.41,118.37,6.12741583]
[1644272820662,0.2120691,118.41,118.37,18.79731583]
[1644272820962,0.2120691,118.41,118.37,19.04731583]
[1644272831579,0.2120691,118.41,118.37,6.12741583]
[1644272835583,0.4241382,118.42,118.37,18.79731583]
[1644272835785,6.4241382,118.42,118.38,23.3787]
[1644272835986,0.4241382,118.42,118.38,23.3787]
[1644272836183,3.82e-05,118.42,118.38,23.6287]
[1644272836584,3.82e-05,118.42,118.39,12.6661]
[1644272836786,3.82e-05,118.42,118.39,19.04351583]
[1644272836986,3.82e-05,118.42,118.4,6.06439994]
[1644272837183,3.82e-05,118.42,118.4,6.31439994]
[1644272838587,3.82e-05,118.42,118.4,18.98089994]
[1644272839806,3.82e-05,118.42,118.41,6.12741583]
[1644272840012,3.82e-05,118.42,118.41,18.79231583]
[1644272840211,3.82e-05,118.42,118.41,19.04231583]
[1644272842010,56.0,118.45,118.41,19.04231583]
[1644272844211,50.0,118.45,118.41,19.04231583]
[1644272845217,50.0,118.45,118.42,1.76906018]
[1644272845414,50.0,118.45,118.43,12.6617]
[1644272845614,50.0,118.45,118.44,6.06439994]
[1644272845815,50.0,118.45,118.44,6.31439994]
[1644272846716,4.221,118.5,118.44,25.10331577]
[1644272846912,40.54,118.52,118.44,26.87237595]
[1644272847114,3.838104,118.51,118.45,23.451]
[1644272847420,3.838104,118.51,118.45,25.47006018]
[1644272847613,42.44920423,118.51,118.45,25.47006018]
[1644272847814,38.61110023,118.51,118.45,25.47006018]
[1644272848013,44.61110023,118.51,118.45,25.47006018]
[1644272849015,44.61110023,118.51,118.45,38.13036018]
[1644272849816,44.61110023,118.51,118.46,6.12741583]
[1644272850216,44.61110023,118.51,118.46,6.37741583]
[1644272850518,4.22,118.53,118.46,19.03711583]
[1644272850716,4.219,118.54,118.47,24.3236]
[1644272851216,24.85263835,118.56,118.47,24.5736]
[1644272851217,42.04083835,118.56,118.47,24.5736]
[1644272851416,65.77010925,118.55,118.47,24.5736]
[1644272851717,13.618226,118.54,118.47,24.5736]
[1644272851917,16.8779,118.54,118.47,37.2315]
[1644272853119,16.8779,118.54,118.47,42.84226394]
[1644272853323,4.219,118.54,118.47,42.84226394]
[1644272853521,2.11000726,118.54,118.47,44.60941994]
[1644272853720,2.11000726,118.54,118.49,12.656]
[1644272853920,42.42846025,118.55,118.49,12.656]
[1644272854119,42.42846025,118.55,118.49,12.906]
[1644272854923,16.8733,118.58,118.49,12.906]
[1644272855122,3.750238,118.57,118.51,12.6538]
[1644272855324,3.750238,118.57,118.51,12.9038]
[1644272855927,39.6890552,118.57,118.51,12.9038]
[1644272856129,3.750238,118.56,118.51,12.9038]
[1644272856623,3.750238,118.56,118.52,6.12741583]
[1644272858123,35.9388172,118.57,118.52,6.12741583]
[1644272858423,35.9388172,118.57,118.52,28.93861583]
[1644272859031,41.9388172,118.57,118.52,28.93861583]
[1644272859326,41.9388172,118.57,118.52,28.68861583]
[1644272859527,41.9388172,118.57,118.52,28.93861583]
[1644272859733,41.9388172,118.57,118.52,28.68861583]
[1644272861128,41.9388172,118.57,118.52,28.93861583]
[1644272861329,41.9388172,118.57,118.52,28.68861583]
[1644272862630,6.0,118.57,118.52,28.68861583]
[1644272862932,6.0,118.57,118.52,28.93861583]
[1644272863130,12.6542,118.58,118.52,28.93861583]
[1644272863131,12.6542,118.58,118.52,28.68861583]
[1644272863832,12.9042,118.58,118.52,28.68861583]
[1644272864131,18.9042,118.58,118.52,28.68861583]
[1644272864332,18.9042,118.58,118.52,28.93861583]
[1644272864732,18.9042,118.58,118.52,28.68861583]
[1644272865337,18.9042,118.58,118.52,28.93861583]
[1644272865637,6.25,118.58,118.52,28.93861583]
[1644272866134,0.25,118.58,118.52,28.93861583]
[1644272866335,10.217,118.59,118.52,28.93861583]
[1644272866535,51.8624,118.6,118.52,28.93861583]
[1644272866942,12.6534,118.59,118.52,41.59171583]
[1644272867336,12.9034,118.59,118.52,41.59171583]
[1644272869536,12.6534,118.59,118.52,41.59171583]
[1644272869736,57.8624,118.6,118.52,43.35117115]
[1644272869737,66.2975,118.6,118.52,43.35117115]
[1644272869937,66.2975,118.6,118.52,47.56817115]
[1644272871744,42.942,118.6,118.52,47.56817115]
[1644272872568,42.942,118.6,118.52,53.56817115]
[1644272872742,42.942,118.6,118.52,47.56817115]
[1644272873547,42.942,118.6,118.52,53.56817115]
[1644272874347,30.2899,118.6,118.52,53.56817115]
[1644272874746,6.0,118.6,118.52,53.56817115]
[1644272875246,0.32526068,118.61,118.52,53.56817115]
[1644272875646,12.97636068,118.61,118.52,53.56817115]
[1644272878556,18.97636068,118.61,118.52,53.56817115]
[1644272879654,18.97636068,118.61,118.52,51.80871583]
[1644272882378,20.18259903,118.61,118.52,51.80871583]
[1644272884378,14.18259903,118.61,118.52,51.80871583]
[1644272884979,14.18259903,118.61,118.52,53.56796062]
[1644272885378,14.18259903,118.61,118.52,65.69157733]
[1644272885878,12.97636068,118.61,118.52,65.69157733]
[1644272887088,12.97636068,118.61,118.52,63.93233254]
[1644272887284,0.32526068,118.61,118.52,63.93233254]
[1644272890096,0.32526068,118.61,118.49,0.69241098]
[1644272890294,0.32526068,118.61,118.51,6.0]
[1644272890493,0.32526068,118.61,118.5,4.52790139]
[1644272890694,0.32526068,118.61,118.5,10.217]
[1644272890898,0.32526068,118.61,118.52,12.6531]
[1644272891699,0.32526068,118.61,118.53,22.5601]
[1644272891901,0.32526068,118.61,118.55,12.6471]
[1644272892198,0.32526068,118.61,118.56,22.5601]
[1644272892701,0.32526068,118.61,118.56,22.8101]
[1644272893896,0.32526068,118.61,118.57,12.6469]
[1644272894296,0.32526068,118.61,118.57,12.8969]
[1644272895396,0.32526068,118.61,118.57,0.25]
[1644272895796,0.32526068,118.61,118.56,22.8101]
[1644272896496,0.32526068,118.61,118.56,35.4583]
[1644272900804,0.32526068,118.61,118.56,12.6482]
[1644272901003,0.32526068,118.61,118.54,36.0098]
[1644272901803,25.06896068,118.61,118.54,36.0098]
[1644272902602,25.06896068,118.61,118.54,36.2598]
[1644272902803,25.31896068,118.61,118.54,36.0098]
[1644272903007,37.96956068,118.61,118.54,36.0098]
[1644272904909,37.96956068,118.61,118.54,36.2598]
[1644272910336,26.52519903,118.61,118.54,36.2598]
[1644272910934,31.31896068,118.61,118.54,36.2598]
[1644272911235,25.31896068,118.61,118.54,36.2598]
[1644272911644,31.31896068,118.61,118.54,36.2598]
[1644272911934,37.96926068,118.61,118.54,36.2598]
[1644272912136,45.17549903,118.61,118.54,36.2598]
[1644272912333,37.96926068,118.61,118.54,36.2598]
[1644272912636,43.96926068,118.61,118.54,36.2598]
[1644272912834,37.96926068,118.61,118.54,36.2598]
[1644272913034,43.96926068,118.61,118.54,36.2598]
[1644272913235,45.17549903,118.61,118.54,36.2598]
[1644272913442,37.96926068,118.61,118.54,36.2598]
[1644272913636,43.96926068,118.61,118.54,36.2598]
[1644272914038,45.17549903,118.61,118.54,36.2598]
[1644272914336,39.17549903,118.61,118.54,36.2598]
[1644272914542,39.17549903,118.61,118.54,42.2598]
[1644272914738,37.96926068,118.61,118.54,42.2598]
[1644272916139,39.17549903,118.61,118.54,42.2598]
[1644272916339,39.17549903,118.61,118.54,36.2598]
[1644272919242,37.96926068,118.61,118.54,36.2598]
[1644272920144,39.17549903,118.61,118.54,36.2598]
[1644272920544,37.96926068,118.61,118.54,36.2598]
[1644272921949,39.17549903,118.61,118.54,36.2598]
[1644272922447,1.53149903,118.61,118.54,36.2598]
[1644272922650,0.32526068,118.61,118.54,44.00995007]
[1644272922849,0.32526068,118.61,118.54,57.08127951]
[1644272925103,0.32526068,118.61,118.54,61.29727951]
[1644272928358,0.32526068,118.61,118.54,55.29727951]
[1644272929260,0.32526068,118.61,118.54,51.08127951]
[1644272932063,0.32526068,118.61,118.54,55.29727951]
[1644272935470,0.32526068,118.61,118.54,51.08127951]
[1644272937476,0.32526068,118.61,118.54,49.33112944]
[1644272937674,0.32526068,118.61,118.54,36.2598]
[1644272938477,0.32526068,118.61,118.54,36.0098]
[1644272939778,0.32526068,118.61,118.54,36.2598]
[1644272942494,0.32526068,118.61,118.55,1.75015007]
[1644272942694,0.32526068,118.61,118.56,12.6477]
[1644272943195,0.32526068,118.61,118.57,1.75015007]
[1644272943603,0.32526068,118.61,118.57,8.00015007]
[1644272944299,0.32526068,118.61,118.57,20.64805007]
[1644272945098,0.32526068,118.61,118.57,20.39805007]
[1644272945298,0.32526068,118.61,118.57,12.6479]
[1644272945504,0.32526068,118.61,118.56,37.5088]
[1644272946700,12.97486068,118.61,118.56,37.7588]
[1644272947303,12.97486068,118.61,118.56,37.5088]
[1644272947701,18.97486068,118.61,118.56,37.5088]
[1644272947900,12.97486068,118.61,118.56,37.5088]
[1644272948500,12.97486068,118.61,118.56,37.7588]
[1644272951002,12.97486068,118.61,118.56,37.5088]
[1644272952203,12.97486068,118.61,118.56,37.7588]
[1644272953501,12.97486068,118.61,118.56,12.6496]
[1644272953702,13.22486068,118.61,118.55,12.6508]
[1644272954502,12.97486068,118.61,118.55,12.6508]
[1644272954703,13.22486068,118.61,118.55,12.6508]
[1644272955104,12.97486068,118.61,118.55,12.9008]
[1644272956206,13.22486068,118.61,118.55,12.9008]
[1644272958607,19.22486068,118.61,118.55,12.9008]
[1644272959214,13.22486068,118.61,118.55,12.9008]
[1644272962707,19.22486068,118.61,118.55,12.9008]
[1644272963311,13.22486068,118.61,118.55,12.9008]
[1644272963510,19.22486068,118.61,118.55,12.9008]
[1644272963711,13.22486068,118.61,118.55,12.9008]
[1644272965308,12.97486068,118.61,118.55,12.9008]
[1644272965509,18.97486068,118.61,118.55,12.9008]
[1644272966712,19.22486068,118.61,118.55,12.9008]
[1644272969612,13.22486068,118.61,118.55,12.9008]
[1644272973843,11.1171126,118.61,118.55,12.9008]
[1644272977323,10.8671126,118.61,118.55,12.9008]
[1644272987255,11.1171126,118.61,118.55,12.9008]
[1644272989158,10.8671126,118.61,118.55,12.9008]
[1644272993863,11.1171126,118.61,118.55,12.9008]
[1644272994163,11.71691601,118.62,118.55,12.9008]
[1644272994363,17.71691601,118.62,118.55,12.9008]
[1644272995063,12.6496,118.61,118.55,12.9008]
[1644272997069,18.6496,118.61,118.55,12.9008]
[1644272998372,12.6496,118.61,118.55,12.9008]
[1644273000574,37.2567,118.62,118.55,12.9008]
[1644273000975,43.2567,118.62,118.55,12.9008]
[1644273001380,37.2567,118.62,118.55,12.9008]
[1644273001874,43.2567,118.62,118.55,12.9008]
[1644273002078,37.2567,118.62,118.55,12.9008]
[1644273002476,37.2567,118.62,118.56,36.5278]
[1644273002877,37.2567,118.62,118.56,36.7778]
[1644273003376,12.6492,118.62,118.56,36.7778]
[1644273006678,18.6492,118.62,118.56,36.7778]
[1644273008499,12.6492,118.62,118.56,36.7778]
[1644273018811,36.9624,118.63,118.56,36.7778]
[1644273019008,42.9624,118.63,118.56,36.7778]
[1644273019411,36.9624,118.63,118.56,36.7778]
[1644273020010,42.9624,118.63,118.56,36.7778]
[1644273020209,36.9624,118.63,118.56,36.7778]
[1644273021609,42.9624,118.63,118.56,36.7778]
[1644273022009,36.9624,118.63,118.56,36.7778]
[1644273022614,42.9624,118.63,118.56,36.7778]
[1644273022817,36.9624,118.63,118.56,36.7778]
[1644273023217,42.9624,118.63,118.56,36.7778]
[1644273023618,36.9624,118.63,118.56,36.7778]
[1644273027222,36.9624,118.63,118.56,38.52483439]
[1644273027422,24.3135,118.63,118.56,38.52483439]
[1644273031928,30.3135,118.63,118.56,38.52483439]
[1644273032325,24.3135,118.63,118.56,38.52483439]
[1644273032626,24.3135,118.63,118.56,38.29883439]
[1644273034135,36.9624,118.63,118.56,38.54883439]
[1644273035137,36.9624,118.63,118.56,44.54883439]
[1644273035538,24.3135,118.63,118.56,38.54883439]
[1644273036638,24.3135,118.63,118.57,0.024]
[1644273036839,24.3135,118.63,118.57,12.672]
[1644273037041,24.3135,118.63,118.57,14.66370294]
[1644273041565,30.3135,118.63,118.57,14.66370294]
[1644273041964,24.3135,118.63,118.57,14.66370294]
[1644273045566,24.3135,118.63,118.57,20.66370294]
[1644273045970,24.3135,118.63,118.57,14.66370294]
[1644273046570,24.3135,118.63,118.57,20.66370294]
[1644273046973,24.3135,118.63,118.57,14.66370294]
[1644273057589,24.3135,118.63,118.57,20.66370294]
[1644273058089,24.3135,118.63,118.57,14.66370294]
[1644273058588,24.3135,118.63,118.57,20.66370294]
[1644273060296,24.3135,118.63,118.57,14.66370294]
[1644273062098,24.3135,118.63,118.57,20.66370294]
[1644273062296,24.3135,118.63,118.58,0.74447282]
[1644273062697,24.3135,118.63,118.58,13.39207282]
[1644273062904,24.3135,118.63,118.58,13.64207282]
[1644273070618,24.3135,118.63,118.58,19.64207282]
[1644273073321,24.3135,118.63,118.58,13.64207282]
[1644273073525,24.3135,118.63,118.58,19.64207282]
[1644273073721,24.3135,118.63,118.58,13.64207282]
[1644273075823,0.2770223,118.64,118.58,15.35497985]
[1644273076024,0.2770223,118.64,118.6,12.6449]
[1644273076222,0.2770223,118.64,118.6,12.8949]
[1644273079921,0.2770223,118.64,118.6,12.6449]
[1644273081222,0.2770223,118.64,118.6,12.8949]
[1644273081926,0.2770223,118.64,118.62,0.74447282]
[1644273082225,0.2770223,118.64,118.63,6.06439994]
[1644273084027,0.2770223,118.64,118.63,18.70699994]
[1644273084430,0.2770223,118.64,118.63,20.66990697]
[1644273088839,0.2770223,118.64,118.63,43.45750697]
[1644273089641,0.5540446,118.64,118.63,43.45750697]
[1644273091439,0.5540446,118.64,118.63,57.76868588]
[1644273092243,0.1074588,118.7,118.63,57.76868588]
[1644273093340,0.1074588,118.7,118.63,43.45750697]
[1644273094041,0.2149176,118.7,118.63,43.45750697]
[1644273100252,0.2149176,118.7,118.63,56.57629699]
[1644273101252,0.2149176,118.7,118.63,56.32629699]
[1644273102682,0.2149176,118.7,118.63,56.57629699]
[1644273103178,0.2149176,118.7,118.68,0.74447282]
[1644273103383,5.259382,118.69,118.68,0.74447282]
[1644273103578,11.259382,118.69,118.68,0.74447282]
[1644273103978,6.0,118.69,118.68,0.74447282]
[1644273104779,5.82160776,118.69,118.68,0.74447282]
[1644273107982,5.82160776,118.69,118.68,6.80887276]
[1644273109087,5.82160776,118.69,118.68,0.74447282]
[1644273109592,5.82160776,118.69,118.68,6.80887276]
[1644273111196,5.82160776,118.69,118.68,7.05887276]
[1644273113098,5.82160776,118.69,118.68,6.80887276]
[1644273116801,5.82160776,118.69,118.68,7.05887276]
[1644273117804,5.82160776,118.69,118.68,6.80887276]
[1644273119302,5.82160776,118.69,118.68,0.74447282]
[1644273119905,5.82160776,118.69,118.68,1.28590166]
[1644273120131,5.82160776,118.69,118.68,1.53590166]
[1644273120606,5.82160776,118.69,118.68,1.28590166]
[1644273122008,5.82160776,118.69,118.68,0.74447282]
[1644273122909,18.46260776,118.69,118.68,0.74447282]
[1644273126811,18.71260776,118.69,118.68,0.74447282]
[1644273127216,18.46260776,118.69,118.68,0.74447282]
[1644273128618,18.71260776,118.69,118.68,0.74447282]
[1644273129621,18.46260776,118.69,118.68,0.74447282]
[1644273133131,18.46260776,118.69,118.59,1.18492222]
[1644273133328,4.214,118.68,118.57,0.024]
[1644273133529,12.6509,118.64,118.57,0.024]
[1644273133730,4.215,118.63,118.57,0.024]
[1644273133932,1.20623835,118.66,118.57,0.024]
[1644273134130,4.215,118.65,118.57,0.024]
[1644273134331,23.3311,118.64,118.57,0.024]
[1644273134530,4.215,118.63,118.57,0.024]
[1644273134731,65.504,118.64,118.57,0.024]
[1644273134931,6.0,118.63,118.57,0.024]
[1644273135337,23.5668,118.62,118.57,0.024]
[1644273135739,29.8168,118.62,118.57,0.024]
[1644273135941,42.4678,118.62,118.57,0.024]
[1644273172476,42.2178,118.62,118.57,0.024]
[1644273173779,42.4678,118.62,118.57,0.024]
[1644273177381,36.4678,118.62,118.57,0.024]
[1644273178180,42.4678,118.62,118.57,0.024]
[1644273204527,42.2178,118.62,118.57,0.024]
[1644273204731,42.4678,118.62,118.57,0.024]
[1644273205827,46.6838,118.62,118.57,0.024]
[1644273208830,42.4678,118.62,118.57,0.024]
[1644273214239,0.024,118.61,118.57,0.024]
[1644273214437,0.024,118.61,118.55,0.131957]
[1644273214438,12.6518,118.6,118.55,0.155957]
[1644273214640,18.6518,118.6,118.55,0.155957]
[1644273217144,0.024,118.59,118.55,0.155957]
[1644273217344,12.6761,118.59,118.55,0.155957]
[1644273217545,18.6761,118.59,118.55,0.155957]
[1644273221878,12.6761,118.59,118.55,0.155957]
[1644273222678,18.6761,118.59,118.55,0.155957]
[1644273228388,18.6761,118.59,118.54,35.8432]
[1644273228585,18.6761,118.59,118.54,34.9681587]
[1644273235390,18.6761,118.59,118.54,32.4681587]
[1644273236194,12.6761,118.59,118.54,32.4681587]
[1644273237595,18.6761,118.59,118.54,32.4681587]
[1644273239094,12.6761,118.59,118.54,32.4681587]
[1644273239294,18.6761,118.59,118.54,32.4681587]
[1644273239596,12.6761,118.59,118.54,32.4681587]
[1644273240095,18.6761,118.59,118.54,32.4681587]
[1644273240296,12.6761,118.59,118.54,32.4681587]
[1644273240596,18.6761,118.59,118.54,32.4681587]
[1644273240795,12.6761,118.59,118.54,32.4681587]
[1644273241402,18.6761,118.59,118.54,32.4681587]
[1644273241696,12.6761,118.59,118.54,32.4681587]
[1644273242595,18.6761,118.59,118.54,32.4681587]
[1644273242797,12.6761,118.59,118.54,32.4681587]
[1644273243597,18.6761,118.59,118.54,32.4921587]
[1644273244002,12.6761,118.59,118.54,32.4921587]
[1644273244598,18.6761,118.59,118.54,32.4921587]
[1644273244899,12.6761,118.59,118.54,34.19191653]
[1644273247200,12.6761,118.59,118.54,40.19191653]
[1644273247500,12.6761,118.59,118.54,34.19191653]
[1644273263541,18.6761,118.59,118.54,34.19191653]
[1644273263739,12.6761,118.59,118.54,34.19191653]
[1644273265142,18.6761,118.59,118.54,34.19191653]
[1644273266244,12.6761,118.59,118.54,34.19191653]
[1644273266445,18.6761,118.59,118.54,34.19191653]
[1644273266847,12.6761,118.59,118.54,34.19191653]
[1644273267047,18.6761,118.59,118.54,34.19191653]
[1644273267448,12.6761,118.59,118.54,34.19191653]
[1644273267646,18.6761,118.59,118.54,34.16791653]
[1644273267844,12.6761,118.59,118.54,34.19191653]
[1644273268245,18.6761,118.59,118.54,34.19191653]
[1644273268646,12.6761,118.59,118.54,34.19191653]
[1644273269046,18.6761,118.59,118.54,34.19191653]
[1644273269646,6.024,118.59,118.54,34.19191653]
[1644273270147,0.024,118.59,118.54,34.19191653]
[1644273277756,0.024,118.59,118.54,35.37683875]
[1644273277955,0.024,118.59,118.54,34.19191653]
[1644273283660,0.024,118.59,118.54,35.37683875]
[1644273286086,0.024,118.59,118.54,41.37683875]
[1644273287288,0.024,118.59,118.54,35.37683875]
[1644273287490,0.024,118.59,118.54,41.37683875]
[1644273287691,0.024,118.59,118.54,40.19191653]
[1644273287890,0.024,118.59,118.54,41.37683875]
[1644273288492,0.024,118.59,118.54,35.37683875]
[1644273291493,0.024,118.59,118.54,34.19191653]
[1644273292093,0.024,118.59,118.54,51.99265099]
[1644273292294,0.024,118.61,118.54,45.99265099]
[1644273292495,0.024,118.61,118.54,47.17757321]
[1644273293094,12.6734,118.61,118.54,47.17757321]
[1644273293297,18.9234,118.61,118.54,47.17757321]
[1644273299999,18.9234,118.61,118.54,53.17757321]
[1644273300401,18.9234,118.61,118.54,47.17757321]
[1644273301702,18.9234,118.61,118.59,0.57476581]
[1644273305705,18.9234,118.61,118.6,8.303]
[1644273307006,18.6734,118.61,118.6,8.303]
[1644273307208,18.6734,118.61,118.6,11.49163724]
[1644273311613,18.9234,118.61,118.6,11.49163724]
[1644273311813,18.9234,118.61,118.6,8.45943727]
[1644273312013,18.9234,118.61,118.6,11.33519997]
[1644273315715,18.6734,118.61,118.6,11.33519997]
[1644273315915,18.6734,118.61,118.6,11.49163724]
[1644273317217,18.9234,118.61,118.6,11.49163724]
[1644273320123,18.9234,118.61,118.6,11.33519997]
[1644273320523,18.9234,118.61,118.6,14.18515091]
[1644273321426,18.6734,118.61,118.6,14.18515091]
[1644273330559,6.024,118.61,118.6,14.18515091]
[1644273334265,6.024,118.61,118.6,12.07615817]
[1644273337169,7.024,118.61,118.6,12.07615817]
[1644273338364,7.024,118.61,118.6,9.22620723]
[1644273339066,12.649,118.62,118.6,9.22620723]
[1644273339265,1.20623835,118.66,118.61,0.30002735]
[1644273339467,12.6452,118.67,118.61,0.30002735]
[1644273339670,1.20623835,118.68,118.61,0.30002735]
[1644273339671,1.20623835,118.69,118.61,2.00186099]
[1644273339966,1.20623835,118.69,118.62,6.19400726]
[1644273340469,13.0751072,118.68,118.62,6.19400726]
[1644273340767,13.3251072,118.68,118.62,6.19400726]
[1644273341067,18.8945,118.68,118.62,6.19400726]
[1644273343267,18.6445,118.68,118.62,6.19400726]
[1644273344071,18.6445,118.68,118.6,18.84000726]
[1644273344271,23.911,118.67,118.6,19.09000726]
[1644273344472,36.557,118.67,118.6,19.09000726]
[1644273344672,36.807,118.67,118.6,19.09000726]
[1644273345078,36.807,118.67,118.6,20.7918409]
[1644273348075,42.807,118.67,118.6,20.7918409]
[1644273348275,12.646,118.67,118.61,23.8153]
[1644273348480,5.42023835,118.69,118.61,36.4602]
[1644273348481,12.6447,118.68,118.61,36.4602]
[1644273348680,30.5635,118.69,118.62,6.19400726]
[1644273348980,30.5635,118.69,118.63,23.8153]
[1644273349579,43.2076,118.69,118.63,23.8153]
[1644273349779,43.4576,118.69,118.63,23.8153]
[1644273350977,43.4576,118.69,118.62,6.19400726]
[1644273351179,43.2076,118.69,118.62,6.19400726]
[1644273351379,43.2076,118.69,118.67,0.57476581]
[1644273351678,43.2076,118.69,118.68,6.19400726]
[1644273351882,55.731325,118.69,118.68,6.19400726]
[1644273354181,55.981325,118.69,118.68,6.19400726]
[1644273356579,75.197831,118.69,118.68,6.19400726]
[1644273356980,55.19236,118.69,118.68,6.19400726]